lending/lending_fUSD_20251022
["ID","MTS","AMOUNT","RATE_DAILY","PERIOD"]
[392014634,1761101438378,-3027.9318585,0.00015,2]
[392014635,1761101438396,-275.72346164,0.00015,2]
[392014636,1761101438414,-9519.62534888,0.00015,2]
[392014637,1761101438438,-5374.69097121,0.00015,2]
[392014774,1761101439720,-16870.67575512,0.00015,2]
[392014777,1761101439737,-180623.63927937,0.00015,2]
[392014805,1761101439981,-1847.09999977,0.00015,2]
[392014807,1761101440000,-3910.75,0.00015,2]
[392014812,1761101440034,-1551.79822102,0.00015,2]
[392014815,1761101440053,-1034.355,0.00015,2]
[392014820,1761101440096,-114257.29465163,0.00015,2]
[392014823,1761101440110,-151.0,0.00015158,2]
[392014826,1761101440131,-151.0,0.00015158,2]
[392014829,1761101440148,-151.0,0.00015159,2]
[392014832,1761101440164,-151.0,0.00015161,2]
[392014834,1761101440180,-1230.02,0.00015247,2]
[392014837,1761101440195,-164.86,0.00015265,2]
[392014840,1761101440210,-166.66,0.00015283,2]
[392014842,1761101440224,-500.0,0.00015346,2]
[392014845,1761101440239,-38560.55978722,0.00015346,2]
[392014847,1761101440253,-419.25578656,0.00015521,2]
[392014850,1761101440268,-500.0,0.00015521,2]
[392014853,1761101440283,-500.0,0.00015521,2]
[392014856,1761101440304,-502.36297036,0.00015521,2]
[392014858,1761101440313,-1230.02,0.00015521,2]
[392014860,1761101440322,-166.66,0.00015586,2]
[392014862,1761101440332,-2985.19,0.00015669,2]
[392014864,1761101440342,-1230.02,0.00015795,2]
[392014866,1761101440352,-166.66,0.00015889,2]
[392014868,1761101440365,-1230.02,0.00016068,2]
[392014870,1761101440375,-150.0,0.00016094,2]
[392014872,1761101440384,-300.0,0.00016098,2]
[392014874,1761101440393,-250.0,0.00016106,2]
[392014876,1761101440402,-1519.28771112,0.00016106,2]
[392014878,1761101440412,-326.36730156,0.00016139,2]
[392014901,1761101440421,-250.0,0.00016139,2]
[392014902,1761101440789,-195.0,0.00016139,2]
[392014903,1761101440801,-318.0,0.00016308,2]
[392014904,1761101440810,-1230.02,0.00016342,2]
[392014905,1761101440820,-513.0,0.00016389,2]
[392014906,1761101440829,-506.24944518,0.00016438,2]
[392014907,1761101440839,-162.88,0.0001644,2]
[392014908,1761101440848,-1230.02,0.00016616,2]
[392014909,1761101440858,-2405.14900872,0.00016873,2]
[392014910,1761101440867,-4510.29181627,0.00016886,2]
[392014911,1761101440876,-10932.87922227,0.00016886,2]
[392014912,1761101440886,-1230.08573279,0.0001689,2]
[392014913,1761101440895,-1006.49870651,0.000169,2]
[392014914,1761101440906,-16721.31758959,0.000169,2]
[392014915,1761101440915,-61273.96775944,0.000169,2]
[392014916,1761101440934,-24002.09244626,0.000169,2]
[392014917,1761101440943,-1247.2163255,0.00017022,2]
[392014918,1761101440952,-466.69118156,0.00017258,2]
[392014919,1761101440962,-3955.6104892,0.00017324,2]
[392014920,1761101440974,-19027.6609705,0.00017324,2]
[392014921,1761101440983,-255.63585556,0.00017454,2]
[392014922,1761101440993,-300.0,0.00017468,2]
[392014923,1761101441006,-278.2915784,0.00017473,2]
[392014925,1761101441016,-161.6496426,0.00017879,2]
[392014926,1761101441024,-160.38,0.00018061,2]
[392014928,1761101441033,-476.13251256,0.0001807,2]
[392014930,1761101441043,-350.95964609,0.00018123,2]
[392014932,1761101441053,-152.03,0.000188,2]
[392014934,1761101441063,-4510.29181627,0.00018872,2]
[392014936,1761101441072,-4131.08125785,0.00018872,2]
[392014940,1761101441323,-1.6e-07,0.00018872,2]
[392014941,1761101441334,-6801.79796426,0.00018872,2]
[392014942,1761101441343,-334.01249815,0.00019,2]
[392014943,1761101441353,-164.86,0.00019081,2]
[392014944,1761101441362,-118.0608911,0.00019388,2]
[392014945,1761101441371,-1000.0,0.0002,4]
[392014946,1761101441380,-255.63585556,0.00020007,2]
[392014947,1761101441390,-288.14,0.00020187,2]
[392014948,1761101441399,-295.79,0.00020196,2]
[392014949,1761101441418,-156.4643,0.000203,2]
[392014950,1761101441428,-4510.29181627,0.00020859,2]
[392014951,1761101441439,-10932.87922227,0.00020859,2]
[392014952,1761101441449,-161.6496426,0.00020859,2]
[392014953,1761101441459,-295.79,0.00021004,2]
[392014954,1761101441469,-156.4643,0.000213,2]
[392014955,1761101441480,-350.95964609,0.00021345,2]
[392014956,1761101441491,-295.79,0.00021811,2]
[392014957,1761101441501,-500.0,0.00021917,2]
[392014958,1761101441511,-575.70218171,0.00021917,2]
[392014959,1761101441522,-2751.0,0.0002197,2]
[392014960,1761101441532,-250.0,0.0002197,2]
[392014961,1761101441542,-156.4643,0.000223,2]
[392014962,1761101441552,-151.33,0.0002245,2]
[392014963,1761101441562,-255.63585556,0.00022561,2]
[392014964,1761101441572,-295.79,0.00022619,2]
[392014965,1761101441582,-4510.29181627,0.00022845,2]
[392014966,1761101441592,-10932.87922227,0.00022845,2]
[392014967,1761101441602,-164.86,0.00022898,2]
[392014968,1761101441611,-151.0,0.00023288,7]
[392014969,1761101441621,-151.0,0.00023288,7]
[392014970,1761101441632,-151.0,0.00023288,7]
[392014971,1761101441641,-151.0,0.00023288,7]
[392014972,1761101441651,-156.4643,0.000233,2]
[392014973,1761101441661,-295.79,0.00023427,2]
[392014974,1761101441671,-161.6496426,0.00023838,2]
[392014975,1761101441682,-295.79,0.00024235,2]
[392014976,1761101441692,-156.4643,0.000243,2]
[392014977,1761101441702,-350.95964609,0.00024568,2]
[392014978,1761101441713,-215.64627344,0.0002473,2]
[392014979,1761101441722,-500.0,0.00024773,2]
[392014980,1761101441733,-501.10291534,0.00024773,2]
[392014981,1761101441744,-501.27037795,0.00024773,2]
[392014982,1761101441753,-501.28903143,0.00024773,2]
[392014983,1761101441763,-575.12419139,0.00024773,2]
[392014984,1761101441772,-501.61165197,0.00024773,2]
[392014985,1761101441782,-152.03,0.0002479,2]
[392014986,1761101441791,-299927.269399,0.000248,2]
[392014987,1761101441801,-500.0,0.0002483,2]
[392014988,1761101441810,-4510.29181627,0.00024831,2]
[392014989,1761101441820,-10932.87922227,0.00024831,2]
[392014990,1761101441829,-501.13264446,0.00024873,2]
[392014991,1761101441839,-500.0,0.00024899,2]
[392014992,1761101441848,-9152.16,0.000249,7]
[392014993,1761101441859,-280.377519,0.000249,7]
[392014994,1761101441869,-373405.486351,0.000249,2]
[392014995,1761101441879,-151.0,0.000249,7]
[392014996,1761101441888,-288.640548,0.000249,7]
[392014997,1761101441898,-151.0,0.000249,7]
[392014998,1761101441910,-1000.0,0.00025,20]
[392014999,1761101441921,-1000.0,0.00025,20]
[392015000,1761101441931,-1000.0,0.00025,20]
[392015001,1761101441942,-1000.0,0.00025,20]
[392015002,1761101441957,-1000.0,0.00025,20]
[392015003,1761101441967,-1000.0,0.00025,20]
[392015004,1761101441977,-1000.0,0.00025,20]
[392015005,1761101441987,-1000.0,0.00025,20]
[392015006,1761101441999,-1000.0,0.00025,20]
[392015007,1761101442010,-1000.0,0.00025,20]
[392015008,1761101442020,-1000.0,0.00025,20]
[392015009,1761101442029,-1000.0,0.00025,20]
[392015010,1761101442039,-1000.0,0.00025,20]
[392015011,1761101442050,-1000.0,0.00025,20]
[392015012,1761101442059,-1000.0,0.00025,20]
[392015013,1761101442070,-1000.0,0.00025,20]
[392015014,1761101442080,-1000.0,0.00025,20]
[392015015,1761101442089,-1000.0,0.00025,20]
[392015016,1761101442098,-1000.0,0.00025,20]
[392015017,1761101442108,-1000.0,0.00025,20]
[392015018,1761101442118,-1000.0,0.00025,20]
[392015019,1761101442127,-1000.0,0.00025,20]
[392015020,1761101442136,-1000.0,0.00025,20]
[392015021,1761101442146,-1000.0,0.00025,20]
[392015022,1761101442155,-1000.0,0.00025,20]
[392015023,1761101442164,-1000.0,0.00025,20]
[392015024,1761101442174,-1000.0,0.00025,20]
[392015025,1761101442184,-1000.0,0.00025,20]
[392015026,1761101442193,-1000.0,0.00025,20]
[392015027,1761101442203,-1000.0,0.00025,20]
[392015028,1761101442212,-1000.0,0.00025,20]
[392015029,1761101442221,-1000.0,0.00025,20]
[392015030,1761101442231,-375.0,0.00025,20]
[392015031,1761101442241,-295.79,0.00025043,2]
[392015032,1761101442250,-255.63585556,0.00025115,2]
[392015033,1761101442259,-349.72738683,0.00025321,2]
[392015034,1761101442269,-870.0,0.00025636,2]
[392015035,1761101442278,-295.79,0.00025851,2]
[392015036,1761101442288,-906.248,0.00025896,2]
[392015037,1761101442297,-2548.0,0.00025896,2]
[392015038,1761101442307,-295.79,0.00026658,2]
[392015039,1761101442316,-288.14,0.00026676,2]
[392015040,1761101442325,-4510.29181627,0.00026817,2]
[392015041,1761101442338,-10932.87922227,0.00026817,2]
[392015042,1761101442347,-161.6496426,0.00026817,2]
[392015043,1761101442358,-347.78,0.00027397,30]
[392015044,1761101442367,-150.40131831,0.00027397,5]
[392015045,1761101442377,-4726.29,0.000274,2]
[392015046,1761101442386,-295.79,0.00027466,2]
[392015047,1761101442396,-177.36,0.00027467,2]
[392015048,1761101442406,-719.7,0.000275,7]
[392015049,1761101442415,-798.91,0.000275,7]
[392015050,1761101442426,-180.26283889,0.00027538,2]
[392015051,1761101442435,-255.63585556,0.00027669,2]
[392015053,1761101442445,-199.0,0.00027671,7]
[392015054,1761101442455,-350.95964609,0.0002779,2]
[392015055,1761101442464,-9152.16,0.000278,7]
[392015056,1761101442474,-199.0,0.00027945,8]
[392015057,1761101442484,-181.15,0.00028,2]
[392015059,1761101442494,-152.0,0.00028031,3]
[392015060,1761101442504,-1465.0,0.000281,3]
[392015061,1761101442513,-199.0,0.00028219,9]
[392015062,1761101442523,-197.04338459,0.00028253,4]
[392015063,1761101442532,-295.79,0.00028274,2]
[392015064,1761101442541,-25000.0,0.00028321,10]
[392015065,1761101442551,-226.17,0.00028434,2]
[392015067,1761101442561,-199.0,0.00028493,10]
[392015069,1761101442572,-500.0,0.00028624,7]
[392015071,1761101442582,-13594.82,0.00028625,10]
[392015072,1761101442591,-215.64627342,0.00028753,2]
[392015073,1761101442601,-322.5098371,0.00028767,11]
[392015074,1761101442610,-5513.0,0.000288,5]
[392015075,1761101442620,-4510.29181627,0.00028804,2]
[392015076,1761101442632,-10932.87922227,0.00028804,2]
[392015077,1761101442641,-195.78,0.00028812,2]
[392015078,1761101442651,-2548.0,0.00028896,2]
[392015079,1761101442661,-45352.8,0.00029,2]
[392015080,1761101442670,-295.79,0.00029082,2]
[392015081,1761101442680,-168.0,0.00029397,2]
[392015082,1761101442689,-9152.16,0.000294,7]
[392015083,1761101442699,-258.0,0.00029449,2]
[392015084,1761101442708,-532.13515562,0.0002951,7]
[392015086,1761101442721,-500.0,0.0002951,7]
[392015088,1761101442731,-169.34231845,0.0002951,7]
[392015090,1761101442742,-168.0,0.00029516,2]
[392015091,1761101442752,-168.0,0.00029546,2]
[392015092,1761101442761,-150.0,0.00029561,7]
[392015093,1761101442772,-450.0,0.00029561,7]
[392015094,1761101442781,-152.0,0.00029564,4]
[392015095,1761101442792,-4726.29,0.000296,2]
[392015096,1761101442803,-168.0,0.00029624,2]
[392015097,1761101442812,-258.0,0.00029672,2]
[392015098,1761101442823,-168.0,0.00029722,2]
[392015099,1761101442834,-168.0,0.00029761,2]
[392015100,1761101442846,-168.0,0.00029779,2]
[392015101,1761101442856,-168.0,0.00029783,2]
[392015102,1761101442866,-161.6496426,0.00029797,15]
[392015103,1761101442876,-1000.0,0.000298,30]
[392015104,1761101442885,-4305.39,0.00029844,2]
[392015105,1761101442895,-1960.43695902,0.00029884,2]
[392015106,1761101442904,-295.79,0.0002989,2]
[392015107,1761101442914,-798.91,0.000299,7]
[392015108,1761101442923,-168.0,0.00029917,2]
[392015109,1761101442933,-162.99050684,0.0003,30]
[392015110,1761101442943,-719.7,0.0003,7]
[392015111,1761101442952,-151.0,0.0003,30]
[392015112,1761101442962,-168.0,0.00030029,2]
[392015113,1761101442972,-168.0,0.00030107,2]
[392015114,1761101442981,-255.63585556,0.00030222,2]
[392015115,1761101442991,-1000.0,0.00030292,2]
[392015116,1761101443003,-1000.0,0.00030311,2]
[392015117,1761101443012,-1000.0,0.00030404,2]
[392015118,1761101443022,-500.0,0.00030455,2]
[392015119,1761101443031,-150.0,0.00030455,2]
[392015120,1761101443041,-150.0,0.00030455,2]
[392015121,1761101443050,-150.0,0.00030455,2]
[392015122,1761101443061,-500.0,0.00030455,2]
[392015123,1761101443071,-150.0,0.00030455,2]
[392015124,1761101443084,-500.0,0.00030455,2]
[392015125,1761101443095,-500.0,0.00030455,2]
[392015126,1761101443105,-500.0,0.00030455,2]
[392015127,1761101443115,-500.0,0.00030455,2]
[392015128,1761101443124,-150.0,0.00030455,2]
[392015129,1761101443133,-500.0,0.00030455,2]
[392015130,1761101443143,-500.0,0.00030455,2]
[392015131,1761101443152,-500.0,0.00030455,2]
[392015132,1761101443161,-150.0,0.00030455,2]
[392015133,1761101443172,-157.40184898,0.00030455,2]
[392015134,1761101443182,-153.93268946,0.00030455,2]
[392015135,1761101443191,-150.0,0.00030455,2]
[392015136,1761101443201,-500.0,0.00030455,2]
[392015137,1761101443211,-500.0,0.00030455,2]
[392015138,1761101443220,-151.0,0.00030455,30]
[392015139,1761101443230,-150.0,0.00030455,2]
[392015140,1761101443239,-150.0,0.00030455,2]
[392015141,1761101443248,-150.0,0.00030455,2]
[392015142,1761101443258,-274.02345825,0.00030455,60]
[392015143,1761101443268,-150.0,0.00030455,2]
[392015144,1761101443277,-500.0,0.00030455,2]
[392015145,1761101443287,-500.0,0.00030455,2]
[392015146,1761101443297,-500.0,0.00030455,2]
[392015147,1761101443308,-500.0,0.00030455,2]
[392015148,1761101443317,-150.0,0.00030455,2]
[392015149,1761101443328,-9152.16,0.000305,7]
[392015150,1761101443338,-503.17153212,0.0003051,2]
[392015151,1761101443347,-150.59189771,0.0003051,2]
[392015152,1761101443357,-150.0,0.0003051,2]
[392015153,1761101443367,-150.0,0.0003051,2]
[392015154,1761101443378,-500.0,0.0003051,2]
[392015155,1761101443387,-290.51761115,0.0003051,2]
[392015156,1761101443397,-500.0,0.0003051,2]
[392015157,1761101443408,-500.0,0.0003051,2]
[392015158,1761101443418,-500.0,0.0003051,2]
[392015159,1761101443427,-500.0,0.0003051,2]
[392015160,1761101443436,-151.37309149,0.0003051,2]
[392015161,1761101443446,-500.0,0.0003051,2]
[392015162,1761101443455,-500.0,0.0003051,2]
[392015163,1761101443464,-150.0,0.0003051,2]
[392015164,1761101443474,-502.55281322,0.0003051,2]
[392015165,1761101443483,-500.0,0.0003051,2]
[392015166,1761101443492,-150.0,0.0003051,2]
[392015167,1761101443502,-150.0,0.0003051,2]
[392015168,1761101443511,-151.99993636,0.0003051,2]
[392015169,1761101443521,-200.0,0.0003051,2]
[392015170,1761101443531,-500.0,0.0003051,2]
[392015171,1761101443541,-503.50894851,0.0003051,2]
[392015172,1761101443550,-500.0,0.0003051,2]
[392015173,1761101443560,-500.0,0.0003051,2]
[392015174,1761101443571,-150.0,0.0003051,2]
[392015175,1761101443580,-150.0,0.00030565,2]
[392015176,1761101443590,-202.39736581,0.00030565,2]
[392015177,1761101443600,-303.9261723,0.00030565,2]
[392015178,1761101443609,-417.96960404,0.00030565,2]
[392015179,1761101443619,-500.0,0.00030565,2]
[392015180,1761101443628,-500.0,0.00030565,2]
[392015181,1761101443638,-500.0,0.00030565,2]
[392015182,1761101443647,-500.0,0.00030565,2]
[392015183,1761101443656,-500.0,0.00030565,2]
[392015184,1761101443666,-150.0,0.00030565,2]
[392015185,1761101443678,-270.24679278,0.00030565,2]
[392015186,1761101443688,-201.25700237,0.00030565,2]
[392015187,1761101443699,-200.0,0.00030565,2]
[392015188,1761101443710,-152.37166469,0.00030565,2]
[392015189,1761101443720,-150.0,0.00030565,2]
[392015190,1761101443732,-500.0,0.00030565,2]
[392015191,1761101443743,-1000.0,0.0003057,2]
[392015192,1761101443753,-200.73457507,0.00030619,2]
[392015193,1761101443763,-500.0,0.00030619,2]
[392015194,1761101443774,-500.0,0.00030619,2]
[392015195,1761101443784,-500.0,0.00030619,2]
[392015196,1761101443795,-500.0,0.00030619,2]
[392015197,1761101443805,-500.0,0.00030619,2]
[392015198,1761101443816,-150.0,0.00030619,2]
[392015199,1761101443827,-500.0,0.00030619,2]
[392015200,1761101443837,-500.0,0.00030674,2]
[392015201,1761101443847,-500.0,0.00030674,2]
[392015202,1761101443857,-565.13793985,0.00030674,2]
[392015203,1761101444046,-500.0,0.00030674,2]
[392015204,1761101444061,-500.0,0.00030674,2]
[392015205,1761101444072,-150.0,0.00030674,2]
[392015206,1761101444081,-500.0,0.00030674,2]
[392015207,1761101444090,-369.48,0.00030685,30]
[392015208,1761101444100,-1000.0,0.00030698,2]
[392015209,1761101444110,-5000.0,0.00030698,2]
[392015210,1761101444119,-150.0,0.00030698,2]
[392015211,1761101444129,-196.68,0.00030698,120]
[392015212,1761101444138,-295.79,0.00030698,2]
[392015213,1761101444147,-168.0,0.00030707,2]
[392015214,1761101444157,-500.0,0.00030729,2]
[392015215,1761101444170,-500.0,0.00030729,2]
[392015216,1761101444180,-500.0,0.00030729,2]
[392015217,1761101444191,-500.0,0.00030729,2]
[392015218,1761101444201,-250.0,0.00030729,2]
[392015219,1761101444211,-500.0,0.00030729,2]
[392015220,1761101444220,-225.2462219,0.00030784,2]
[392015221,1761101444231,-500.0,0.00030784,2]
[392015222,1761101444242,-504.47967922,0.00030784,2]
[392015223,1761101444251,-500.0,0.00030784,2]
[392015224,1761101444260,-500.0,0.00030784,2]
[392015225,1761101444269,-4510.29181627,0.0003079,2]
[392015226,1761101444278,-10932.87922227,0.0003079,2]
[392015227,1761101444289,-4726.29,0.000308,2]
[392015228,1761101444300,-500.0,0.00030839,2]
[392015229,1761101444311,-500.0,0.00030839,2]
[392015230,1761101444320,-500.0,0.00030839,2]
[392015231,1761101444330,-500.0,0.00030893,2]
[392015232,1761101444339,-500.0,0.00030893,2]
[392015233,1761101444348,-500.0,0.00030893,2]
[392015234,1761101444358,-500.0,0.00030948,2]
[392015235,1761101444368,-202.26449881,0.00030948,2]
[392015236,1761101444378,-500.0,0.00030948,2]
[392015237,1761101444388,-606.71,0.00030959,2]
[392015238,1761101444397,-156.0,0.00031,120]
[392015239,1761101444408,-162.0,0.00031,120]
[392015240,1761101444419,-500.0,0.00031003,2]
[392015241,1761101444429,-500.0,0.00031003,2]
[392015242,1761101444438,-154.31916642,0.00031003,2]
[392015243,1761101444448,-350.95964609,0.00031013,2]
[392015244,1761101444459,-168.0,0.00031039,2]
[392015245,1761101444470,-500.0,0.00031041,2]
[392015246,1761101444481,-168.43,0.00031041,2]
[392015247,1761101444490,-500.0,0.00031058,2]
[392015248,1761101444499,-155.29419297,0.00031058,2]
[392015249,1761101444510,-1000.0,0.00031084,2]
[392015250,1761101444519,-168.0,0.00031096,2]
[392015251,1761101444528,-152.0,0.00031096,5]
[392015252,1761101444537,-798.91,0.000311,30]
[392015253,1761101444546,-439.37805235,0.00031113,2]
[392015254,1761101444555,-389.76062678,0.00031208,2]
[392015255,1761101444564,-168.0,0.0003123,2]
[392015256,1761101444574,-168.0,0.00031304,2]
[392015257,1761101444586,-150.0,0.00031378,2]
[392015258,1761101444596,-168.0,0.00031398,2]
[392015259,1761101444606,-719.7,0.000314,7]
[392015260,1761101444615,-1000.0,0.00031409,2]
[392015261,1761101444627,-168.0,0.00031435,2]
[392015262,1761101444637,-168.0,0.00031482,2]
[392015263,1761101444646,-162.461,0.000315,120]
[392015264,1761101444656,-599.14377561,0.0003152,2]
[392015265,1761101444665,-168.0,0.00031525,2]
[392015266,1761101444676,-158.17,0.00031537,15]
[392015267,1761101444687,-158.18,0.00031637,15]
[392015268,1761101444697,-631.91,0.00031647,15]
[392015269,1761101444707,-631.91,0.00031647,15]
[392015270,1761101444717,-631.91,0.00031647,15]
[392015271,1761101444728,-631.91,0.00031647,15]
[392015272,1761101444737,-150.0,0.00031655,2]
[392015273,1761101444747,-154.20133629,0.00031664,2]
[392015274,1761101444757,-150.0,0.00031667,2]
[392015275,1761101444767,-168.0,0.00031696,2]
[392015276,1761101444777,-200.0,0.00031734,2]
[392015277,1761101444787,-1425.0,0.0003176,2]
[392015278,1761101444797,-500.0,0.00031766,14]
[392015279,1761101444807,-500.0,0.00031766,7]
[392015280,1761101444817,-300.0,0.000318,2]
[392015281,1761101444826,-344.75363738,0.000318,2]
[392015282,1761101444835,-654.22,0.000318,50]
[392015283,1761101444846,-500.0,0.00031825,2]
[392015284,1761101444855,-208.36285139,0.00031827,2]
[392015285,1761101444865,-1225.8,0.00031863,2]
[392015286,1761101444877,-1094.46,0.00031863,2]
[392015287,1761101444887,-171.41,0.00031863,2]
[392015288,1761101444898,-414.15,0.00031863,2]
[392015289,1761101444908,-1200.82,0.00031863,2]
[392015290,1761101444918,-414.15,0.00031863,2]
[392015291,1761101444929,-1199.92,0.00031863,2]
[392015292,1761101444940,-414.15,0.00031863,2]
[392015293,1761101444950,-413.75,0.00031863,2]
[392015294,1761101444959,-258.0,0.00031881,7]
[392015295,1761101444970,-2548.0,0.00031896,2]
[392015296,1761101444982,-4726.29,0.000319,2]
[392015297,1761101444993,-150.0,0.00031912,2]
[392015298,1761101445008,-631.91,0.00031921,15]
[392015299,1761101445017,-631.91,0.00031921,15]
[392015300,1761101445027,-150.0,0.00031947,2]
[392015301,1761101445036,-1000.0,0.00031953,2]
[392015302,1761101445047,-1425.0,0.00031983,2]
[392015303,1761101445058,-628.84048359,0.00031999,14]
[392015304,1761101445067,-947.63948665,0.00032,120]
[392015305,1761101445078,-2074.86565963,0.00032,5]
[392015306,1761101445088,-10216.83525244,0.00032,5]
[392015307,1761101445098,-1000.0,0.00032,2]
[392015308,1761101445109,-1000.0,0.00032,2]
[392015309,1761101445118,-1000.0,0.00032,2]
[392015310,1761101445129,-1000.0,0.00032,2]
[392015311,1761101445139,-91962.65975632,0.00032,2]
[392015312,1761101445149,-1000.0,0.00032,2]
[392015313,1761101445158,-1000.0,0.00032,2]
[392015314,1761101445168,-1000.0,0.00032,2]
[392015315,1761101445178,-1000.0,0.00032,2]
[392015316,1761101445187,-1000.0,0.00032,2]
[392015317,1761101445198,-1000.0,0.00032,2]
[392015318,1761101445209,-3030.2963636,0.00032,4]
[392015319,1761101445220,-190.80325287,0.00032,2]
[392015320,1761101445230,-10022.37710389,0.00032,120]
[392015321,1761101445239,-298.64905258,0.00032,120]
[392015322,1761101445248,-289.10876777,0.00032,120]
[392015323,1761101445258,-172.09471183,0.00032,120]
[392015324,1761101445267,-164.22574656,0.00032,120]
[392015325,1761101445276,-198.64326032,0.00032,120]
[392015326,1761101445286,-188.81429718,0.00032,120]
[392015327,1761101445299,-316.38316586,0.00032,120]
[392015328,1761101445308,-400.0,0.00032,2]
[392015329,1761101445317,-369.35926653,0.00032,120]
[392015330,1761101445326,-1011.0,0.00032,2]
[392015331,1761101445335,-151.0,0.00032,30]
[392015332,1761101445345,-180.718243,0.00032,30]
[392015333,1761101445354,-224.89424028,0.00032001,2]
[392015334,1761101445363,-1000.0,0.00032013,2]
[392015335,1761101445373,-150.0,0.00032042,2]
[392015336,1761101445386,-150.16,0.00032055,2]
[392015337,1761101445395,-151.14,0.00032055,2]
[392015338,1761101445406,-1200.82,0.00032055,2]
[392015339,1761101445418,-301.49,0.00032055,2]
[392015340,1761101445428,-1094.46,0.00032055,2]
[392015341,1761101445437,-192.31,0.00032055,2]
[392015342,1761101445447,-336.23,0.00032055,2]
[392015343,1761101445456,-828.1,0.00032055,2]
[392015344,1761101445466,-1200.82,0.00032055,2]
[392015345,1761101445476,-168.43,0.00032055,2]
[392015346,1761101445488,-176.26,0.00032055,2]
[392015347,1761101445498,-176.26,0.00032055,2]
[392015348,1761101445509,-1200.82,0.00032055,2]
[392015349,1761101445519,-150.0,0.00032055,2]
[392015350,1761101445529,-168.43,0.00032055,2]
[392015351,1761101445539,-1200.82,0.00032055,2]
[392015352,1761101445548,-176.26,0.00032055,2]
[392015353,1761101445558,-168.43,0.00032055,2]
[392015354,1761101445567,-168.43,0.00032055,2]
[392015355,1761101445578,-150.0,0.00032055,2]
[392015356,1761101445588,-168.43,0.00032055,2]
[392015357,1761101445601,-168.0,0.00032066,2]
[392015358,1761101445611,-1000.0,0.00032079,2]
[392015359,1761101445624,-150.0,0.00032087,2]
[392015360,1761101445634,-1425.0,0.00032118,2]
[392015361,1761101445644,-22410.67,0.00032132,8]
[392015362,1761101445654,-2997.58,0.00032132,8]
[392015363,1761101445664,-1000.0,0.00032191,20]
[392015364,1761101445673,-1000.0,0.00032191,20]
[392015365,1761101445683,-761.6478065,0.00032191,20]
[392015367,1761101445702,-631.91,0.00032195,15]
[392015368,1761101445711,-631.91,0.00032195,15]
[392015369,1761101445723,-166.39,0.0003222,2]
[392015370,1761101445733,-150.0,0.00032243,2]
[392015371,1761101445743,-798.91,0.000323,30]
[392015372,1761101445754,-564.73185175,0.00032328,7]
[392015373,1761101445770,-1425.0,0.00032372,2]
[392015374,1761101445782,-347.78,0.00032379,30]
[392015375,1761101445791,-1425.0,0.00032391,2]
[392015376,1761101445802,-150.0,0.00032419,2]
[392015377,1761101445812,-1000.0,0.00032421,2]
[392015378,1761101445823,-200.0,0.00032432,2]
[392015379,1761101445832,-200.0,0.00032432,2]
[392015380,1761101445843,-252.0,0.00032432,2]
[392015381,1761101445853,-200.0,0.00032432,2]
[392015382,1761101445863,-202.0,0.00032432,2]
[392015383,1761101445873,-200.0,0.00032432,2]